bitfinex/quotes_BTCUSD_20230901
["timestamp","ask_amount","ask_price","bid_price","bid_amount"]
[1693567285321,0.14979654,26010.0,26009.0,1.51157579]
[1693567285539,0.14895654,26010.0,26009.0,1.51157579]
[1693567285747,0.14919654,26010.0,26009.0,1.51157579]
[1693567285906,0.14937654,26010.0,26009.0,1.51157579]
[1693567286133,0.14955654,26010.0,26009.0,1.51157579]
[1693567286513,0.14829654,26010.0,26009.0,1.51157579]
[1693567286652,0.14715654,26010.0,26009.0,1.51157579]
[1693567286827,0.14823654,26010.0,26009.0,1.51157579]
[1693567287027,0.14829654,26010.0,26009.0,1.51157579]
[1693567287265,0.14877654,26010.0,26009.0,1.51157579]
[1693567287603,0.15057654,26010.0,26009.0,1.51157579]
[1693567287890,0.15117654,26010.0,26009.0,1.51157579]
[1693567288108,0.15129654,26010.0,26009.0,1.51157579]
[1693567288251,0.15147654,26010.0,26009.0,1.51157579]
[1693567288459,0.15165654,26010.0,26009.0,1.51157579]
[1693567288758,0.15213654,26010.0,26009.0,1.51157579]
[1693567288986,0.15225654,26010.0,26009.0,1.51157579]
[1693567289191,0.15243654,26010.0,26009.0,1.51157579]
[1693567289506,0.15273654,26010.0,26009.0,1.51157579]
[1693567289716,0.15297654,26010.0,26009.0,1.51157579]
[1693567289906,0.15327654,26010.0,26009.0,1.51157579]
[1693567290094,0.15405654,26010.0,26009.0,1.51157579]
[1693567290253,0.15417654,26010.0,26009.0,1.51157579]
[1693567290497,0.15267654,26010.0,26009.0,1.51157579]
[1693567290697,0.15285654,26010.0,26009.0,1.51157579]
[1693567290898,0.15303654,26010.0,26009.0,1.51157579]
[1693567291236,0.15315654,26010.0,26009.0,1.51157579]
[1693567291435,0.15213654,26010.0,26009.0,1.96288241]
[1693567291617,0.15243654,26010.0,26009.0,1.96288241]
[1693567291848,0.15267654,26010.0,26009.0,1.96288241]
[1693567292049,0.15165654,26010.0,26009.0,1.96288241]
[1693567292416,0.15045654,26010.0,26009.0,1.96288241]
[1693567292611,0.14721654,26010.0,26009.0,1.96289762]
[1693567292800,0.13905654,26010.0,26009.0,1.96289762]
[1693567292931,0.13893654,26010.0,26009.0,1.87064391]
[1693567293293,0.13845654,26010.0,26009.0,1.87064391]
[1693567293597,0.14133654,26010.0,26009.0,1.87064391]
[1693567293773,0.14175654,26010.0,26009.0,1.87064391]
[1693567293977,0.14115654,26010.0,26009.0,1.87064391]
[1693567294173,0.14169654,26010.0,26009.0,1.87064391]
[1693567294383,0.14265654,26010.0,26009.0,1.87064391]
[1693567294582,0.14211654,26010.0,26009.0,1.87064391]
[1693567294782,0.14223654,26010.0,26009.0,1.962946]
[1693567294957,0.14229654,26010.0,26009.0,1.962946]
[1693567295157,0.14283654,26010.0,26009.0,1.962946]
[1693567295363,0.14301654,26010.0,26009.0,1.962946]
[1693567295679,0.14247654,26010.0,26009.0,1.962946]
[1693567296263,0.14277654,26010.0,26009.0,1.962946]
[1693567296644,0.14187654,26010.0,26009.0,1.962946]
[1693567296853,0.14265654,26010.0,26009.0,1.962946]
[1693567297052,0.14277654,26010.0,26009.0,1.962946]
[1693567297276,0.14301654,26010.0,26009.0,1.962946]
[1693567297491,0.14313654,26010.0,26009.0,1.962946]
[1693567297693,0.14319654,26010.0,26009.0,1.962946]
[1693567298144,0.14433654,26010.0,26009.0,1.962946]
[1693567298343,0.14391654,26010.0,26009.0,1.962946]
[1693567298540,0.14379654,26010.0,26009.0,1.962946]
[1693567298805,0.14379654,26010.0,26009.0,2.01975088]
[1693567298985,0.14445654,26010.0,26009.0,2.01975088]
[1693567299318,0.14493654,26010.0,26009.0,2.01975088]
[1693567299523,0.14775654,26010.0,26009.0,2.01975088]
[1693567299797,0.15357654,26010.0,26009.0,2.01975088]
[1693567299999,0.15357654,26010.0,26009.0,1.43004848]
[1693567300151,0.15933654,26010.0,26009.0,1.43004848]
[1693567300362,0.16437654,26010.0,26009.0,1.36190789]
[1693567300558,0.16743654,26010.0,26009.0,1.36190789]
[1693567300758,0.16797654,26010.0,26009.0,1.36190789]
[1693567300964,0.16791654,26010.0,26009.0,1.36190789]
[1693567301199,0.16785654,26010.0,26009.0,1.36190789]
[1693567301388,0.16779654,26010.0,26009.0,1.36190789]
[1693567301796,0.16785654,26010.0,26009.0,1.36190789]
[1693567301998,0.16893654,26010.0,26009.0,1.36190789]
[1693567302401,0.16917654,26010.0,26009.0,1.36190789]
[1693567302577,0.17061654,26010.0,26009.0,1.36190789]
[1693567302902,0.16923654,26010.0,26009.0,1.36190789]
[1693567303102,0.16899654,26010.0,26009.0,1.36190789]
[1693567303298,0.16905654,26010.0,26009.0,1.36190789]
[1693567303619,0.16929654,26010.0,26009.0,1.36190789]
[1693567303954,0.16965654,26010.0,26009.0,1.36190789]
[1693567304587,0.17121654,26010.0,26009.0,1.36190789]
[1693567304789,0.17139654,26010.0,26009.0,1.36190789]
[1693567304943,0.17073654,26010.0,26009.0,1.36190789]
[1693567305370,0.17067654,26010.0,26009.0,1.36190789]
[1693567305579,0.17073654,26010.0,26009.0,1.36190789]
[1693567305816,0.17067654,26010.0,26009.0,1.36190789]
[1693567306426,0.17097654,26010.0,26009.0,1.36190789]
[1693567306629,0.17025654,26010.0,26009.0,1.36190789]
[1693567306831,0.16959654,26010.0,26009.0,1.36190789]
[1693567307036,0.17157654,26010.0,26009.0,1.36190789]
[1693567307399,0.17229654,26010.0,26009.0,1.36190789]
[1693567307720,0.17175654,26010.0,26009.0,1.36190789]
[1693567307930,0.46757654,26010.0,26009.0,1.2696058]
[1693567308120,0.46433654,26010.0,26009.0,1.2696058]
[1693567308350,0.47033654,26010.0,26009.0,1.2696058]
[1693567308567,0.47141654,26010.0,26009.0,1.2696058]
[1693567308778,0.74646666,26010.0,26009.0,1.2696058]
[1693567308998,0.76326666,26010.0,26009.0,1.2696058]
[1693567309205,0.76050666,26010.0,26009.0,1.2696058]
[1693567309408,0.76026666,26010.0,26009.0,1.2696058]
[1693567309715,0.75954666,26010.0,26009.0,1.2696058]
[1693567309882,0.75906666,26010.0,26009.0,1.2696058]
[1693567310092,0.75870666,26010.0,26009.0,1.2696058]
[1693567310292,0.75834666,26010.0,26009.0,1.2696058]
[1693567310537,0.75750666,26010.0,26009.0,1.2696058]
[1693567310710,0.76806666,26010.0,26009.0,1.2696058]
[1693567310916,0.76758666,26010.0,26009.0,1.2696058]
[1693567311094,0.76698666,26010.0,26009.0,1.2696058]
[1693567311295,0.76650666,26010.0,26009.0,1.2696058]
[1693567311501,0.77046666,26010.0,26009.0,1.2696058]
[1693567311704,0.77094666,26010.0,26009.0,1.2696058]
[1693567311930,0.76590666,26010.0,26009.0,1.2696058]
[1693567312137,0.76986666,26010.0,26009.0,1.2696058]
[1693567312333,0.76482666,26010.0,26009.0,1.2696058]
[1693567312543,0.76230666,26010.0,26009.0,1.2696058]
[1693567312747,0.76194666,26010.0,26009.0,1.2696058]
[1693567312921,0.76146666,26010.0,26009.0,1.2696058]
[1693567313131,0.76098666,26010.0,26009.0,1.2696058]
[1693567313302,0.76002666,26010.0,26009.0,1.2696058]
[1693567313502,0.75990666,26010.0,26009.0,1.2696058]
[1693567313795,0.75294666,26010.0,26009.0,1.2696058]
[1693567314038,0.75330666,26010.0,26009.0,1.2696058]
[1693567314240,0.75246666,26010.0,26009.0,1.2696058]
[1693567314444,0.75198666,26010.0,26009.0,1.2696058]
[1693567314597,0.75162666,26010.0,26009.0,1.2696058]
[1693567315005,0.75234666,26010.0,26009.0,1.2696058]
[1693567315233,0.75222666,26010.0,26009.0,1.2696058]
[1693567315431,0.75210666,26010.0,26009.0,1.2696058]
[1693567315650,0.75114666,26010.0,26009.0,1.2696058]
[1693567315896,0.75174666,26010.0,26009.0,1.2696058]
[1693567316147,0.75150666,26010.0,26009.0,1.28133106]
[1693567316346,0.75126666,26010.0,26009.0,1.28133106]
[1693567316559,0.75186666,26010.0,26009.0,1.28133106]
[1693567316735,0.75078666,26010.0,26009.0,1.28133106]
[1693567316962,0.75126666,26010.0,26009.0,1.2696058]
[1693567317223,0.74538666,26010.0,26009.0,1.2696058]
[1693567317403,0.74526666,26010.0,26009.0,1.2696058]
[1693567317604,0.74274666,26010.0,26009.0,1.2696058]
[1693567317753,0.74202666,26010.0,26009.0,1.2696058]
[1693567317983,0.74142666,26010.0,26009.0,1.2696058]
[1693567318213,0.74154666,26010.0,26009.0,1.2696058]
[1693567318399,0.72978666,26010.0,26009.0,1.2696058]
[1693567318596,0.44945654,26010.0,26009.0,1.2696058]
[1693567318806,0.15747654,26010.0,26009.0,1.2696058]
[1693567318964,0.15357654,26010.0,26009.0,1.2696058]
[1693567319164,0.15357654,26010.0,26009.0,1.36190789]
[1693567319165,0.15279654,26010.0,26009.0,1.36190789]
[1693567319373,0.15297654,26010.0,26009.0,1.36190789]
[1693567319605,0.15417654,26010.0,26009.0,1.36190789]
[1693567319819,0.15423654,26010.0,26009.0,1.36190789]
[1693567320142,0.15453654,26010.0,26009.0,1.36190789]
[1693567320340,0.15807654,26010.0,26009.0,1.36190789]
[1693567320545,0.15243654,26010.0,26009.0,1.36190789]
[1693567320821,0.15429654,26010.0,26009.0,1.36190789]
[1693567320988,0.15255654,26010.0,26009.0,1.37348417]
[1693567321188,0.15267654,26010.0,26009.0,1.37348417]
[1693567321402,0.15291654,26010.0,26009.0,1.37348417]
[1693567321602,0.15309654,26010.0,26009.0,1.37348417]
[1693567321850,0.15238654,26010.0,26009.0,1.37348417]
[1693567322055,0.15250654,26010.0,26009.0,1.37348417]
[1693567322579,0.15526654,26010.0,26009.0,1.37348417]
[1693567322721,0.15592654,26010.0,26009.0,1.37348417]
[1693567322897,0.15334654,26010.0,26009.0,1.37348417]
[1693567323115,0.15346654,26010.0,26009.0,1.37348417]
[1693567323381,0.15352654,26010.0,26009.0,1.37348417]
[1693567323785,0.15358654,26010.0,26009.0,1.37348417]
[1693567324006,0.15022654,26010.0,26009.0,1.37348417]
[1693567324236,0.14830654,26010.0,26009.0,1.37348417]
[1693567324446,0.14488654,26010.0,26009.0,1.51186474]
[1693567324648,0.14512654,26010.0,26009.0,1.51186474]
[1693567324849,0.14500654,26010.0,26009.0,1.51186474]
[1693567325055,0.14554654,26010.0,26009.0,1.51186474]
[1693567325235,0.14626654,26010.0,26009.0,1.51186474]
[1693567325386,0.14704654,26010.0,26009.0,1.51186474]
[1693567325590,0.14740654,26010.0,26009.0,1.51186474]
[1693567325806,0.14812654,26010.0,26009.0,1.51186474]
[1693567326011,0.14836654,26010.0,26009.0,1.51186474]
[1693567326206,0.14854654,26010.0,26009.0,1.51186474]
[1693567326460,0.15112654,26010.0,26009.0,1.51186474]
[1693567326665,0.15130654,26010.0,26009.0,1.51186474]
[1693567326833,0.15262654,26010.0,26009.0,1.51186474]
[1693567327036,0.15298654,26010.0,26009.0,1.51186474]
[1693567327213,0.15310654,26010.0,26009.0,1.51186474]
[1693567327415,0.15358654,26010.0,26009.0,1.51186474]
[1693567327619,0.15376654,26010.0,26009.0,1.51186474]
[1693567327817,0.14860654,26010.0,26009.0,1.51186474]
[1693567328044,0.14638654,26010.0,26009.0,1.51186474]
[1693567328293,0.14770654,26010.0,26009.0,1.51186474]
[1693567328474,0.14740654,26010.0,26009.0,1.51186474]
[1693567328648,0.14752654,26010.0,26009.0,1.51186474]
[1693567328854,0.14884654,26010.0,26009.0,1.51186474]
[1693567329195,0.15004654,26010.0,26009.0,1.51186474]
[1693567329404,0.15058654,26010.0,26009.0,1.51186474]
[1693567329645,0.15010654,26010.0,26009.0,1.51186474]
[1693567329862,0.15058654,26010.0,26009.0,1.51186474]
[1693567330084,0.15106654,26010.0,26009.0,1.51186474]
[1693567330316,0.15028654,26010.0,26009.0,1.51186474]
[1693567330438,0.15034654,26010.0,26009.0,1.51186474]
[1693567330655,0.15076654,26010.0,26009.0,1.51186474]
[1693567330871,0.15100654,26010.0,26009.0,1.51186474]
[1693567331088,0.15106654,26010.0,26009.0,1.51186474]
[1693567331509,0.15118654,26010.0,26009.0,1.51186474]
[1693567331710,0.15100654,26010.0,26009.0,1.51186474]
[1693567331930,0.15154654,26010.0,26009.0,1.51186474]
[1693567332279,0.15166654,26010.0,26009.0,1.51186474]
[1693567332526,0.15190654,26010.0,26009.0,1.51186474]
[1693567332728,1.14058,26015.0,26012.0,0.02]
[1693567332929,0.08088,26015.0,26013.0,1.38396927]
[1693567333130,0.07104,26016.0,26014.0,0.23068051]
[1693567333336,0.07104,26016.0,26014.0,1.16132446]
[1693567333549,0.07536,26018.0,26014.0,0.5716478]
[1693567333758,1.0,26020.0,26014.0,0.38708678]
[1693567333759,0.08796,26019.0,26014.0,0.38708678]
[1693567333968,0.11268,26019.0,26014.0,0.38708678]
[1693567334176,0.12786,26019.0,26014.0,0.38708678]
[1693567334329,0.11304,26018.0,26014.0,0.42208678]
[1693567334484,0.11154,26018.0,26014.0,0.38708678]
[1693567334691,0.12552,26019.0,26014.0,0.54090978]
[1693567334905,0.11844,26019.0,26014.0,0.57790978]
[1693567335107,0.1023,26018.0,26014.0,0.61490978]
[1693567335335,0.11874,26019.0,26014.0,0.61490978]
[1693567335525,0.1194,26019.0,26014.0,0.61490978]
[1693567335725,0.10482,26019.0,26014.0,0.61490978]
[1693567335984,0.10464,26019.0,26014.0,0.61490978]
[1693567336181,0.10452,26019.0,26014.0,0.57790978]
[1693567336386,0.10356,26019.0,26014.0,0.61490978]
[1693567336645,0.10326,26019.0,26014.0,0.57790978]
[1693567336875,0.10284,26019.0,26014.0,0.57790978]
[1693567337081,0.10266,26019.0,26014.0,0.57790978]
[1693567337259,0.1017,26019.0,26014.0,0.57790978]
[1693567337462,0.09954,26019.0,26014.0,0.61490978]
[1693567337689,0.09636,26019.0,26014.0,0.61490978]
[1693567337840,0.09612,26019.0,26014.0,0.57790978]
[1693567338038,0.09528,26019.0,26014.0,0.57790978]
[1693567338244,0.09762,26019.0,26014.0,0.61490978]
[1693567338428,0.08064,26018.0,26014.0,0.61490978]
[1693567338626,0.09822,26019.0,26014.0,0.61490978]
[1693567338822,0.0981,26019.0,26014.0,0.61490978]
[1693567339231,0.09804,26019.0,26014.0,0.57790978]
[1693567339430,0.09798,26019.0,26014.0,0.57790978]
[1693567339629,0.09786,26019.0,26014.0,0.61490978]
[1693567339850,0.0954,26019.0,26014.0,0.61490978]
[1693567340058,0.09528,26019.0,26014.0,0.61490978]
[1693567340302,0.09534,26019.0,26014.0,0.61490978]
[1693567340475,0.13662741,26018.0,26014.0,0.57790978]
[1693567340695,0.05844741,26018.0,26014.0,0.61490978]
[1693567341071,0.09612,26019.0,26014.0,0.61490978]
[1693567341231,0.0966,26019.0,26014.0,0.61490978]
[1693567341427,0.05844837,26017.0,26014.0,0.61490978]
[1693567341747,0.09618,26019.0,26014.0,0.61490978]
[1693567341963,0.09594,26019.0,26014.0,0.80709978]
[1693567342144,0.09324,26019.0,26014.0,0.80709978]
[1693567342367,0.09318,26019.0,26014.0,0.77009978]
[1693567342564,0.09534,26019.0,26014.0,0.80709978]
[1693567342821,0.0786,26018.0,26014.0,0.80709978]
[1693567343020,0.0762,26018.0,26014.0,0.77009978]
[1693567343315,0.09486,26019.0,26014.0,0.77009978]
[1693567343560,0.05844741,26017.0,26014.0,0.80709978]
[1693567343949,0.0942,26019.0,26014.0,0.77009978]
[1693567344117,0.2487,26019.0,26014.0,0.77009978]
[1693567344316,0.24864,26019.0,26014.0,0.80709978]
[1693567344687,0.07608,26018.0,26014.0,0.77009978]
[1693567344822,0.07488,26018.0,26014.0,0.77009978]
[1693567345161,0.07482,26018.0,26014.0,0.80709978]
[1693567345367,0.0795,26018.0,26014.0,0.80709978]
[1693567345572,0.0672,26017.0,26014.0,0.80709978]
[1693567345786,0.12570741,26017.0,26014.0,0.80709978]
[1693567346041,0.05844741,26017.0,26014.0,0.99709978]
[1693567346214,0.05844741,26017.0,26014.0,0.92309978]
[1693567346414,0.05844741,26017.0,26014.0,0.96009978]
[1693567346662,0.05844741,26017.0,26014.0,0.99709978]
[1693567347034,0.05844741,26017.0,26014.0,1.07849978]
[1693567347465,0.12474741,26017.0,26014.0,1.11549978]
[1693567347669,0.12492741,26017.0,26014.0,1.11549978]
[1693567347844,0.12468741,26017.0,26014.0,1.11549978]
[1693567348167,0.05844741,26017.0,26014.0,1.11549978]
[1693567348632,0.12570741,26017.0,26014.0,1.11549978]
[1693567348959,0.12468741,26017.0,26014.0,1.11549978]
[1693567349173,0.05844741,26017.0,26014.0,1.11549978]
[1693567351122,0.05844741,26017.0,26014.0,0.99709978]
[1693567351582,0.08148,26019.0,26014.0,0.99709978]
[1693567351788,0.08004,26019.0,26014.0,0.99709978]
[1693567351987,0.07674,26019.0,26014.0,0.99709978]
[1693567352198,1.2549,26020.0,26014.0,0.99709978]
[1693567352600,1.40973471,26020.0,26014.0,0.99709978]
[1693567352740,1.40973471,26020.0,26014.0,0.96009978]
[1693567352948,1.40973471,26020.0,26014.0,0.99709978]
[1693567353276,1.40973471,26020.0,26014.0,0.96009978]
[1693567353474,1.48911471,26020.0,26014.0,0.96009978]
[1693567353687,1.40973471,26020.0,26014.0,0.99709978]
[1693567354402,1.40973471,26020.0,26014.0,0.96009978]
[1693567354567,0.40973471,26020.0,26014.0,0.99709978]
[1693567354989,0.06468,26019.0,26014.0,0.99709978]
[1693567355191,0.21957471,26019.0,26014.0,0.99709978]
[1693567355387,0.15483471,26019.0,26014.0,0.99709978]
[1693567355597,0.06492,26019.0,26014.0,0.99709978]
[1693567355792,0.06462,26019.0,26014.0,0.96009978]
[1693567355993,0.0648,26019.0,26014.0,0.96009978]
[1693567356217,0.0687,26018.0,26014.0,0.99709978]
[1693567356415,0.07416,26018.0,26014.0,0.96009978]
[1693567356709,0.07596,26018.0,26014.0,0.99709978]
[1693567356912,0.06576,26017.0,26014.0,0.99709978]
[1693567357137,0.07044,26017.0,26014.0,0.96009978]
[1693567357341,0.08928,26018.0,26014.0,0.96009978]
[1693567357539,0.08922,26018.0,26014.0,0.99709978]
[1693567357777,0.08904,26018.0,26014.0,0.610013]
[1693567357979,0.05850205,26017.0,26014.0,0.380823]
[1693567358115,0.05850205,26017.0,26014.0,0.343823]
[1693567358462,0.0729,26016.0,26014.0,0.417823]
[1693567358691,0.07278,26016.0,26014.0,0.417823]
[1693567358889,0.0726,26016.0,26014.0,0.417823]
[1693567359088,0.07248,26016.0,26014.0,0.380823]
[1693567359308,0.07632,26016.0,26014.0,0.380823]
[1693567359512,0.07608,26016.0,26014.0,0.380823]
[1693567359727,0.41655471,26016.0,26014.0,0.380823]
[1693567359935,0.40016,26015.0,26014.0,0.380823]
[1693567360145,0.53669775,26015.0,26014.0,0.417823]
[1693567360342,0.52877775,26015.0,26014.0,0.417823]
[1693567360620,0.52409775,26015.0,26014.0,0.380823]
[1693567360858,0.52457775,26015.0,26014.0,0.417823]
[1693567361067,0.52409775,26015.0,26014.0,0.417823]
[1693567361280,0.52589775,26015.0,26014.0,0.417823]
[1693567361479,0.52481775,26015.0,26014.0,0.417823]
[1693567361708,0.77587617,26015.0,26014.0,0.417823]
[1693567361932,0.77839617,26015.0,26014.0,0.343823]
[1693567362144,0.77887617,26015.0,26014.0,0.343823]
[1693567362349,0.77767617,26015.0,26014.0,0.380823]
[1693567362561,0.77767617,26015.0,26014.0,0.343823]
[1693567362562,0.78583617,26015.0,26014.0,0.343823]
[1693567362741,0.78199617,26015.0,26014.0,0.380823]
[1693567362937,0.78187617,26015.0,26014.0,0.380823]
[1693567363140,0.78163617,26015.0,26014.0,0.380823]
[1693567363372,0.78127617,26015.0,26014.0,0.380823]
[1693567363584,1.16824295,26015.0,26014.0,0.380823]
[1693567363790,0.96866453,26015.0,26014.0,0.417823]
[1693567364000,1.22757808,26015.0,26014.0,0.417823]
[1693567364181,0.98678453,26015.0,26014.0,0.417823]
[1693567364501,0.97898453,26015.0,26014.0,0.380823]
[1693567364801,0.97790453,26015.0,26014.0,0.417823]
[1693567365012,0.97730453,26015.0,26014.0,0.380823]
[1693567365213,0.97742453,26015.0,26014.0,0.417823]
[1693567365428,1.2235929,26015.0,26014.0,0.417823]
[1693567365628,1.2279129,26015.0,26014.0,0.417823]
[1693567365827,1.2263529,26015.0,26014.0,0.417823]
[1693567365967,0.98282453,26015.0,26014.0,0.417823]
[1693567366173,1.21022325,26015.0,26014.0,0.417823]
[1693567366406,1.21010325,26015.0,26014.0,0.417823]
[1693567366608,1.21034325,26015.0,26014.0,0.417823]
[1693567366813,1.20770325,26015.0,26014.0,0.417823]
[1693567367104,1.20542325,26015.0,26014.0,0.417823]
[1693567367307,1.20686325,26015.0,26014.0,0.417823]
[1693567367514,1.18982325,26015.0,26014.0,0.417823]
[1693567367918,1.18862325,26015.0,26014.0,0.417823]
[1693567368275,1.18874325,26015.0,26014.0,0.417823]
[1693567368485,1.18862325,26015.0,26014.0,0.533145]
[1693567368707,1.18670325,26015.0,26014.0,0.533145]
[1693567368916,1.18154325,26015.0,26014.0,0.533145]
[1693567369119,1.17722325,26015.0,26014.0,0.533145]
[1693567369305,1.17302325,26015.0,26014.0,0.533145]
[1693567369591,1.16954325,26015.0,26014.0,0.533145]
[1693567369795,1.16822325,26015.0,26014.0,0.533145]
[1693567370125,1.16678325,26015.0,26014.0,0.533145]
[1693567370299,1.16318325,26015.0,26014.0,0.533145]
[1693567370598,1.15766325,26015.0,26014.0,0.533145]
[1693567371022,1.15826325,26015.0,26014.0,0.533145]
[1693567371223,1.14830325,26015.0,26014.0,0.533145]
[1693567371339,1.14914325,26015.0,26014.0,0.533145]
[1693567371551,1.15484325,26015.0,26014.0,0.533145]
[1693567371800,1.16090325,26015.0,26014.0,0.533145]
[1693567371996,1.16174325,26015.0,26014.0,0.533145]
[1693567372199,1.16090325,26015.0,26014.0,0.533145]
[1693567372398,1.16114325,26015.0,26014.0,0.533145]
[1693567372605,1.16210325,26015.0,26014.0,0.533145]
[1693567372925,1.15142325,26015.0,26014.0,0.533145]
[1693567373152,1.15166325,26015.0,26014.0,0.533145]
[1693567373270,1.15178325,26015.0,26014.0,0.533145]
[1693567373470,1.15202325,26015.0,26014.0,0.533145]
[1693567373764,1.15310325,26015.0,26014.0,0.533145]
[1693567374041,1.15322325,26015.0,26014.0,0.533145]
[1693567374242,1.15334325,26015.0,26014.0,0.533145]
[1693567374482,1.15550325,26015.0,26014.0,0.533145]
[1693567374657,1.15526325,26015.0,26014.0,0.533145]
[1693567374858,1.15550325,26015.0,26014.0,0.533145]
[1693567374997,1.15262325,26015.0,26014.0,0.533145]
[1693567375201,1.15490325,26015.0,26014.0,0.533145]
[1693567375560,1.15490325,26015.0,26014.0,0.648467]
[1693567375759,1.15514325,26015.0,26014.0,0.648467]
[1693567375964,1.15550325,26015.0,26014.0,0.648467]
[1693567376171,1.15562325,26015.0,26014.0,0.648467]
[1693567376299,1.15466325,26015.0,26014.0,0.648467]
[1693567376499,1.15490325,26015.0,26014.0,0.648467]
[1693567376705,1.15502325,26015.0,26014.0,0.648467]
[1693567376929,1.15118325,26015.0,26014.0,0.648467]
[1693567377146,1.15166325,26015.0,26014.0,0.648467]
[1693567377382,1.15178325,26015.0,26014.0,0.648467]
[1693567377600,1.15298325,26015.0,26014.0,0.648467]
[1693567377904,1.15334325,26015.0,26014.0,0.648467]
[1693567378128,1.15346325,26015.0,26014.0,0.648467]
[1693567378249,1.15550325,26015.0,26014.0,0.648467]
[1693567378451,1.15562325,26015.0,26014.0,0.648467]
[1693567378650,1.15442325,26015.0,26014.0,0.648467]
[1693567378850,1.15454325,26015.0,26014.0,0.648467]
[1693567379051,1.15466325,26015.0,26014.0,0.648467]
[1693567379251,1.15622325,26015.0,26014.0,0.648467]
[1693567379492,1.15682325,26015.0,26014.0,0.648467]
[1693567379901,1.15550325,26015.0,26014.0,0.648467]
[1693567380100,1.15562325,26015.0,26014.0,0.648467]
[1693567380327,1.14698325,26015.0,26014.0,0.648467]
[1693567380517,0.53201775,26015.0,26014.0,0.648467]
[1693567380719,0.48713775,26015.0,26014.0,0.763789]
[1693567380953,0.48089775,26015.0,26014.0,0.763789]
[1693567381140,0.47837775,26015.0,26014.0,0.763789]
[1693567381342,0.47705775,26015.0,26014.0,0.763789]
[1693567381517,0.47717775,26015.0,26014.0,0.763789]
[1693567381737,0.47705775,26015.0,26014.0,0.763789]
[1693567381935,0.47729775,26015.0,26014.0,0.763789]
[1693567382200,0.34475775,26015.0,26014.0,0.763789]
[1693567382358,0.47693775,26015.0,26014.0,0.763789]
[1693567382537,0.47813775,26015.0,26014.0,0.763789]
[1693567382715,0.47861775,26015.0,26014.0,0.763789]
[1693567382933,0.34547775,26015.0,26014.0,0.763789]
[1693567383136,0.34535775,26015.0,26014.0,0.763789]
[1693567383334,0.34409775,26015.0,26014.0,0.763789]
[1693567383697,0.34085775,26015.0,26014.0,0.763789]
[1693567383888,0.34493775,26015.0,26014.0,0.763789]
[1693567384187,0.34325775,26015.0,26014.0,0.763789]
[1693567384328,0.33935775,26015.0,26014.0,0.763789]
[1693567384526,0.34325775,26015.0,26014.0,0.763789]
[1693567384736,0.34415775,26015.0,26014.0,0.763789]
[1693567384952,0.34427775,26015.0,26014.0,0.763789]
[1693567385159,0.48833775,26015.0,26014.0,0.763789]
[1693567385478,0.48845775,26015.0,26014.0,0.763789]
[1693567385706,0.48857775,26015.0,26014.0,0.763789]
[1693567385880,0.48869775,26015.0,26014.0,0.763789]
[1693567386079,0.48725775,26015.0,26014.0,0.763789]
[1693567386257,0.48941775,26015.0,26014.0,0.763789]
[1693567386687,0.48845775,26015.0,26014.0,0.763789]
[1693567386876,0.48797775,26015.0,26014.0,0.763789]
[1693567387498,0.48785775,26015.0,26014.0,0.763789]
[1693567387723,0.47969775,26015.0,26014.0,0.763789]
[1693567387926,0.50417775,26015.0,26014.0,0.763789]
[1693567388163,0.50021775,26015.0,26014.0,0.763789]
[1693567388476,0.49997775,26015.0,26014.0,0.763789]
[1693567388673,0.49985775,26015.0,26014.0,0.763789]
[1693567388836,0.49997775,26015.0,26014.0,0.763789]
[1693567389033,0.50033775,26015.0,26014.0,0.763789]
[1693567389216,0.50057775,26015.0,26014.0,0.763789]
[1693567389419,0.49997775,26015.0,26014.0,0.763789]
[1693567389622,0.50009775,26015.0,26014.0,0.763789]
[1693567389846,0.50057775,26015.0,26014.0,0.763789]
[1693567390248,0.50021775,26015.0,26014.0,0.763789]
[1693567390875,0.50045775,26015.0,26014.0,0.763789]
[1693567391027,0.50033775,26015.0,26014.0,0.763789]
[1693567391481,0.50045775,26015.0,26014.0,0.763789]
[1693567391832,0.50033775,26015.0,26014.0,0.763789]
[1693567392006,0.50045775,26015.0,26014.0,0.763789]
[1693567392219,0.50033775,26015.0,26014.0,0.763789]
[1693567392377,0.50069775,26015.0,26014.0,0.763789]
[1693567392579,0.50033775,26015.0,26014.0,0.763789]
[1693567392762,0.49085775,26015.0,26014.0,0.763789]
[1693567392956,0.49121775,26015.0,26014.0,0.763789]
[1693567393436,0.49109775,26015.0,26014.0,0.763789]
[1693567393811,0.48737775,26015.0,26014.0,0.763789]
[1693567394322,0.48749775,26015.0,26014.0,0.763789]
[1693567394553,0.48773775,26015.0,26014.0,0.763789]
[1693567394844,0.48785775,26015.0,26014.0,0.763789]
[1693567395051,0.48773775,26015.0,26014.0,0.763789]
[1693567395248,0.48797775,26015.0,26014.0,0.763789]
[1693567395461,0.48809775,26015.0,26014.0,0.763789]
[1693567395667,0.48821775,26015.0,26014.0,0.763789]
[1693567395871,0.49553775,26015.0,26014.0,0.763789]
[1693567396071,0.49589775,26015.0,26014.0,0.763789]
[1693567396214,0.49601775,26015.0,26014.0,0.763789]
[1693567396576,0.49613775,26015.0,26014.0,0.763789]
[1693567396799,0.49409775,26015.0,26014.0,0.763789]
[1693567397176,0.49589775,26015.0,26014.0,0.763789]
[1693567397788,0.49577775,26015.0,26014.0,0.763789]
[1693567397987,0.49613775,26015.0,26014.0,0.763789]
[1693567398331,0.49409775,26015.0,26014.0,0.763789]
[1693567398869,0.49421775,26015.0,26014.0,0.763789]
[1693567399047,0.49445775,26015.0,26014.0,0.763789]
[1693567399658,0.49805775,26015.0,26014.0,0.763789]
[1693567399860,0.49793775,26015.0,26014.0,0.763789]
[1693567400106,0.49769775,26015.0,26014.0,0.763789]
[1693567400457,0.49793775,26015.0,26014.0,0.763789]
[1693567400838,0.49829775,26015.0,26014.0,0.763789]
[1693567400994,0.49805775,26015.0,26014.0,0.763789]
[1693567401196,0.49793775,26015.0,26014.0,0.763789]
[1693567401399,0.49781775,26015.0,26014.0,0.763789]
[1693567401715,0.49793775,26015.0,26014.0,0.763789]
[1693567402138,0.49769775,26015.0,26014.0,0.763789]
[1693567402451,0.49781775,26015.0,26014.0,0.763789]
[1693567402629,0.49769775,26015.0,26014.0,0.763789]
[1693567402837,0.49781775,26015.0,26014.0,0.763789]
[1693567403045,0.49793775,26015.0,26014.0,0.763789]
[1693567403239,0.49769775,26015.0,26014.0,0.763789]
[1693567403978,0.49757775,26015.0,26014.0,0.763789]
[1693567404598,0.49769775,26015.0,26014.0,0.763789]
[1693567404740,0.49673775,26015.0,26014.0,0.763789]
[1693567405139,0.49601775,26015.0,26014.0,0.763789]
[1693567405997,0.49613775,26015.0,26014.0,0.763789]